fUST/lending_fUST_20260117
["ID","MTS","AMOUNT","RATE_DAILY","PERIOD"]
[402289638,1768649461638,-659.07,0.00016712,3]
[402289639,1768649461649,-562.57,0.00016712,3]
[402289640,1768649461660,-500.0,0.00016712,3]
[402289641,1768649461671,-523.41303574,0.00016712,3]
[402289642,1768649461685,-1186.93,0.00016712,3]
[402289643,1768649461696,-500.0,0.00016712,3]
[402289644,1768649461707,-500.0,0.00016712,3]
[402289645,1768649461719,-1786.2,0.00016712,3]
[402289646,1768649461731,-500.0,0.00016712,3]
[402289647,1768649461741,-643.39,0.00016712,3]
[402289648,1768649461752,-500.0,0.00016712,3]
[402289649,1768649461764,-500.0,0.00016712,3]
[402289650,1768649461778,-500.0,0.00016712,3]
[402289651,1768649461788,-612.1,0.00016712,3]
[402289652,1768649461800,-500.0,0.00016712,3]
[402289653,1768649461811,-1089.71,0.00016712,3]
[402289654,1768649461822,-500.0,0.00016712,3]
[402289655,1768649461833,-998.12,0.00016712,3]
[402289656,1768649461845,-500.0,0.00016712,3]
[402289657,1768649461856,-1659.97,0.00016712,3]
[402289658,1768649461868,-500.0,0.00016712,3]
[402289659,1768649461879,-1699.56,0.00016712,3]
[402289660,1768649461890,-974.97,0.00016712,3]
[402289661,1768649461901,-733.19,0.00016712,3]
[402289662,1768649461912,-500.0,0.00016712,3]
[402289663,1768649461923,-1287.57,0.00016712,3]
[402289664,1768649461934,-1613.1,0.00016712,3]
[402289665,1768649461945,-1429.84,0.00016712,3]
[402289666,1768649461955,-1106.34,0.00016712,3]
[402289667,1768649461966,-500.0,0.00016712,3]
[402289668,1768649461978,-500.0,0.00016712,3]
[402289669,1768649461989,-1141.58,0.00016712,3]
[402289670,1768649462002,-500.0,0.00016712,3]
[402289671,1768649462013,-500.0,0.00016712,3]
[402289672,1768649462025,-1806.23,0.00016712,3]
[402289673,1768649462038,-500.0,0.00016712,3]
[402289674,1768649462048,-972.38,0.00016712,3]
[402289675,1768649462059,-2006.9,0.00016712,3]
[402289676,1768649462071,-1072.76,0.00016712,3]
[402289677,1768649462082,-500.0,0.00016712,3]
[402289678,1768649462093,-500.0,0.00016712,3]
[402289679,1768649462103,-1530.01,0.00016712,3]
[402289680,1768649462115,-500.0,0.00016712,3]
[402289681,1768649462126,-999.91,0.00016712,3]
[402289682,1768649462138,-500.0,0.00016712,3]
[402289683,1768649462149,-500.0,0.00016712,3]
[402289684,1768649462160,-920.91,0.00016712,3]
[402289685,1768649462171,-500.0,0.00016712,3]
[402289686,1768649462184,-500.0,0.00016712,3]
[402289687,1768649462194,-500.0,0.00016712,3]
[402289688,1768649462206,-849.02,0.00016712,3]
[402289689,1768649462217,-500.0,0.00016712,3]
[402289690,1768649462228,-500.0,0.00016712,3]
[402289691,1768649462238,-500.0,0.00016712,3]
[402289692,1768649462249,-500.0,0.00016712,3]
[402289693,1768649462259,-500.0,0.00016712,3]
[402289694,1768649462269,-530.71,0.00016712,3]
[402289695,1768649462282,-500.0,0.00016712,3]
[402289696,1768649462293,-863.5,0.00016712,3]
[402289697,1768649462303,-1016.59,0.00016712,3]
[402289698,1768649462313,-570.88,0.00016712,3]
[402289699,1768649462324,-500.0,0.00016712,3]
[402289700,1768649462336,-500.0,0.00016712,3]
[402289701,1768649462347,-1506.77,0.00016712,3]
[402289702,1768649462358,-500.0,0.00016712,3]
[402289703,1768649462369,-1003.52,0.00016712,3]
[402289704,1768649462380,-500.0,0.00016712,3]
[402289705,1768649462391,-500.0,0.00016712,3]
[402289706,1768649462404,-2338.27,0.00016712,3]
[402289707,1768649462415,-974.74,0.00016712,3]
[402289708,1768649462427,-500.0,0.00016712,3]
[402289709,1768649462438,-500.0,0.00016712,3]
[402289710,1768649462448,-617.9,0.00016712,3]
[402289711,1768649462459,-500.0,0.00016712,3]
[402289712,1768649462471,-741.6,0.00016712,3]
[402289713,1768649462482,-565.41,0.00016712,3]
[402289714,1768649462493,-871.62,0.00016712,3]
[402289715,1768649462504,-2020.66,0.00016712,3]
[402289716,1768649462514,-1482.88,0.00016712,3]
[402289717,1768649462526,-939.95,0.00016712,3]
[402289718,1768649462537,-500.0,0.00016712,3]
[402289719,1768649462548,-500.0,0.00016712,3]
[402289720,1768649462559,-500.0,0.00016712,3]
[402289721,1768649462569,-500.0,0.00016712,3]
[402289722,1768649462581,-500.0,0.00016712,3]
[402289723,1768649462592,-680.35,0.00016712,3]
[402289724,1768649462604,-500.0,0.00016712,3]
[402289725,1768649462615,-500.0,0.00016712,2]
[402289726,1768649462627,-1254.59,0.00016712,3]
[402289727,1768649462638,-500.0,0.00016712,3]
[402289728,1768649462649,-500.0,0.00016712,3]
[402289729,1768649462659,-500.0,0.00016712,3]
[402289730,1768649462670,-500.0,0.00016712,3]
[402289731,1768649462681,-500.0,0.00016712,2]
[402289732,1768649462692,-500.0,0.00016712,2]
[402289733,1768649462703,-553.64373807,0.00016752,2]
[402289734,1768649462716,-2674.60743027,0.00016752,2]
[402289735,1768649462726,-2700.0,0.0001676,7]
[402289736,1768649462737,-1367.0,0.00016843,2]
[402289737,1768649462749,-2147.0,0.00016843,2]
[402289738,1768649462761,-661.646,0.00016843,2]
[402289739,1768649462774,-417.0,0.00016843,2]
[402289740,1768649462785,-417.0,0.00016843,2]
[402289741,1768649462797,-715.0,0.00016843,2]
[402289742,1768649462810,-199.164,0.00016843,2]
[402289743,1768649462823,-168.0,0.00016846,2]
[402289744,1768649462834,-1220.0,0.00016862,2]
[402289745,1768649462847,-168.0,0.00016864,2]
[402289746,1768649462858,-168.0,0.00016942,2]
[402289747,1768649462870,-500.0,0.00016986,3]
[402289748,1768649462884,-500.0,0.00016986,3]
[402289749,1768649462896,-500.0,0.00016986,3]
[402289750,1768649462909,-500.0,0.00016986,3]
[402289751,1768649462922,-596.38925241,0.00016986,3]
[402289752,1768649462933,-500.0,0.00016986,3]
[402289753,1768649462945,-500.0,0.00016986,3]
[402289754,1768649462957,-500.0,0.00016986,3]
[402289755,1768649462971,-500.0,0.00016986,3]
[402289756,1768649462982,-1541.12,0.00016986,3]
[402289757,1768649462995,-691.16,0.00016986,3]
[402289758,1768649463007,-500.0,0.00016986,3]
[402289759,1768649463019,-344.19716838,0.00016986,3]
[402289760,1768649463032,-283.24,0.00016986,3]
[402289761,1768649463043,-500.0,0.00016986,3]
[402289762,1768649463056,-500.0,0.00016986,3]
[402289763,1768649463067,-500.0,0.00016986,3]
[402289764,1768649463079,-500.0,0.00016986,3]
[402289765,1768649463091,-500.0,0.00016986,3]
[402289766,1768649463103,-500.0,0.00016986,3]
[402289767,1768649463116,-500.0,0.00016986,3]
[402289768,1768649463128,-500.0,0.00016986,3]
[402289769,1768649463139,-557.26,0.00016986,3]
[402289770,1768649463151,-904.31,0.00016986,3]
[402289771,1768649463162,-500.0,0.00016986,3]
[402289772,1768649463173,-500.0,0.00016986,3]
[402289773,1768649463184,-524.86,0.00016986,3]
[402289774,1768649463195,-500.0,0.00016986,3]
[402289775,1768649463206,-544.01,0.00016986,3]
[402289776,1768649463218,-784.71,0.00016986,3]
[402289777,1768649463229,-953.58,0.00016986,3]
[402289778,1768649463240,-510.56,0.00016986,3]
[402289779,1768649463252,-500.0,0.00016986,3]
[402289780,1768649463263,-1016.13,0.00016986,3]
[402289781,1768649463274,-500.0,0.00016986,3]
[402289782,1768649463287,-587.21,0.00016986,3]
[402289783,1768649463298,-500.0,0.00016986,3]
[402289784,1768649463310,-785.77,0.00016986,3]
[402289785,1768649463320,-500.0,0.00016986,3]
[402289786,1768649463332,-1289.75,0.00016986,3]
[402289787,1768649463343,-848.03,0.00016986,3]
[402289788,1768649463353,-500.0,0.00016986,3]
[402289789,1768649463364,-816.49,0.00016986,3]
[402289790,1768649463375,-1000.0,0.00016986,2]
[402289791,1768649463386,-500.0,0.00016986,3]
[402289792,1768649463398,-500.0,0.00016986,3]
[402289793,1768649463408,-500.0,0.00016986,3]
[402289794,1768649463420,-500.0,0.00016986,3]
[402289795,1768649463431,-649.2,0.00016986,3]
[402289796,1768649463442,-500.0,0.00016986,3]
[402289797,1768649463454,-500.0,0.00016986,3]
[402289798,1768649463465,-500.0,0.00016986,3]
[402289799,1768649463477,-500.0,0.00016986,3]
[402289800,1768649463488,-500.0,0.00016986,3]
[402289801,1768649463498,-500.0,0.00016986,3]
[402289802,1768649463509,-667.06,0.00016986,3]
[402289803,1768649463521,-500.0,0.00016986,3]
[402289804,1768649463532,-500.0,0.00016986,3]
[402289805,1768649463545,-500.0,0.00016986,3]
[402289806,1768649463555,-1441.58,0.00016986,3]
[402289807,1768649463566,-500.0,0.00016986,3]
[402289808,1768649463576,-513.41,0.00016986,3]
[402289809,1768649463587,-500.0,0.00016986,3]
[402289810,1768649463597,-1507.14,0.00016986,3]
[402289811,1768649463608,-500.0,0.00016986,3]
[402289812,1768649463618,-500.0,0.00016986,3]
[402289813,1768649463629,-500.0,0.00016986,3]
[402289814,1768649463640,-500.0,0.00016986,3]
[402289815,1768649463652,-1074.96,0.00016986,3]
[402289816,1768649463663,-790.89,0.00016986,3]
[402289817,1768649463674,-500.0,0.00016986,3]
[402289818,1768649463684,-875.03,0.00016986,3]
[402289819,1768649463695,-500.0,0.00016986,3]
[402289820,1768649463706,-681.74,0.00016986,3]
[402289821,1768649463717,-713.54,0.00016986,3]
[402289822,1768649463727,-500.0,0.00016986,3]
[402289823,1768649463738,-740.56,0.00016986,3]
[402289824,1768649463749,-512.63,0.00016986,3]
[402289825,1768649463762,-877.22,0.00016986,3]
[402289826,1768649463777,-567.65106123,0.00016986,3]
[402289827,1768649463787,-596.56227807,0.00016986,3]
[402289828,1768649463798,-500.0,0.00016986,3]
[402289829,1768649463812,-1834.58,0.00016986,3]
[402289830,1768649463823,-500.0,0.00016986,3]
[402289831,1768649463833,-500.0,0.00016986,3]
[402289832,1768649463844,-500.0,0.00016986,3]
[402289833,1768649463854,-500.0,0.00016986,3]
[402289834,1768649463865,-500.0,0.00016986,3]
[402289835,1768649463876,-500.0,0.00016986,3]
[402289836,1768649463887,-1262.64,0.00016986,3]
[402289837,1768649463899,-500.0,0.00016986,3]
[402289838,1768649463910,-500.0,0.00016986,3]
[402289839,1768649464148,-500.0,0.00016986,3]
[402289840,1768649464160,-500.0,0.00016986,3]
[402289841,1768649464170,-814.83,0.00016986,3]
[402289842,1768649464180,-500.0,0.00016986,3]
[402289843,1768649464190,-500.0,0.00016986,3]
[402289844,1768649464200,-500.0,0.00016986,3]
[402289845,1768649464210,-791.33,0.00016986,3]
[402289846,1768649464220,-500.0,0.00016986,3]
[402289847,1768649464230,-500.0,0.00016986,3]
[402289848,1768649464241,-500.0,0.00016986,3]
[402289849,1768649464251,-500.0,0.00016986,3]
[402289850,1768649464262,-584.24,0.00016986,3]
[402289851,1768649464272,-904.51,0.00016986,3]
[402289852,1768649464283,-500.0,0.00016986,3]
[402289853,1768649464294,-500.0,0.00016986,3]
[402289854,1768649464304,-500.0,0.00016986,3]
[402289855,1768649464314,-500.0,0.00016986,3]
[402289856,1768649464324,-995.62,0.00016986,3]
[402289857,1768649464334,-1454.21,0.00016986,3]
[402289858,1768649464344,-558.41,0.00016986,3]
[402289859,1768649464354,-500.0,0.00016986,3]
[402289860,1768649464363,-500.0,0.00016986,3]
[402289861,1768649464373,-500.0,0.00016986,3]
[402289862,1768649464383,-500.0,0.00016986,3]
[402289863,1768649464393,-500.0,0.00016986,3]
[402289864,1768649464403,-500.0,0.00016986,3]
[402289865,1768649464412,-500.0,0.00016986,2]
[402289866,1768649464422,-500.0,0.00016986,3]
[402289867,1768649464432,-500.0,0.00016986,3]
[402289868,1768649464442,-500.0,0.00016986,3]
[402289869,1768649464453,-500.0,0.00016986,3]
[402289870,1768649464462,-500.0,0.00016986,3]
[402289871,1768649464472,-500.0,0.00016986,3]
[402289872,1768649464482,-500.0,0.00016986,3]
[402289873,1768649464492,-562.69925045,0.00016986,3]
[402289874,1768649464502,-500.0,0.00016986,3]
[402289875,1768649464512,-500.0,0.00016986,3]
[402289876,1768649464521,-500.0,0.00016986,3]
[402289877,1768649464531,-518.28,0.00016986,3]
[402289878,1768649464541,-500.0,0.00016986,3]
[402289879,1768649464551,-648.04,0.00016986,3]
[402289880,1768649464560,-1286.45,0.00016986,3]
[402289881,1768649464569,-1134.77,0.00016986,3]
[402289882,1768649464579,-500.0,0.00016986,3]
[402289883,1768649464590,-500.0,0.00016986,3]
[402289884,1768649464600,-500.0,0.00016986,3]
[402289885,1768649464610,-500.0,0.00016986,3]
[402289886,1768649464620,-500.0,0.00016986,3]
[402289887,1768649464629,-500.0,0.00016986,3]
[402289888,1768649464640,-500.0,0.00016986,3]
[402289889,1768649464650,-500.0,0.00016986,3]
[402289890,1768649464659,-500.0,0.00016986,3]
[402289891,1768649464668,-500.0,0.00016986,3]
[402289892,1768649464677,-1305.23,0.00016986,3]
[402289893,1768649464687,-500.0,0.00016986,3]
[402289894,1768649464697,-593.05,0.00016986,3]
[402289895,1768649464707,-500.0,0.00016986,3]
[402289896,1768649464717,-895.32,0.00016986,3]
[402289897,1768649464727,-556.6,0.00016986,3]
[402289898,1768649464736,-500.0,0.00016986,3]
[402289899,1768649464746,-500.0,0.00016986,3]
[402289900,1768649464755,-592.12,0.00016986,3]
[402289901,1768649464766,-1170.72,0.00016986,3]
[402289902,1768649464778,-500.0,0.00016986,3]
[402289903,1768649464789,-500.0,0.00016986,3]
[402289904,1768649464799,-500.0,0.00016986,3]
[402289905,1768649464808,-500.0,0.00016986,3]
[402289906,1768649464819,-500.0,0.00016986,3]
[402289907,1768649464829,-500.0,0.00016986,3]
[402289908,1768649464839,-501.58,0.00016986,3]
[402289909,1768649464849,-797.95,0.00016986,3]
[402289910,1768649464859,-902.93,0.00016986,3]
[402289911,1768649464870,-1478.48,0.00016986,3]
[402289912,1768649464880,-931.1,0.00016986,3]
[402289913,1768649464890,-500.0,0.00016986,2]
[402289914,1768649464900,-500.0,0.00016986,3]
[402289915,1768649464910,-500.0,0.00016986,3]
[402289916,1768649464920,-500.0,0.00016986,3]
[402289917,1768649464930,-500.0,0.00016986,3]
[402289918,1768649464940,-500.0,0.00016986,3]
[402289919,1768649464950,-500.0,0.00016986,3]
[402289920,1768649464959,-500.0,0.00016986,3]
[402289921,1768649464969,-887.98,0.00016986,3]
[402289922,1768649464978,-500.0,0.00016986,3]
[402289923,1768649464988,-504.62487329,0.00016986,3]
[402289924,1768649464997,-842.12,0.00016986,3]
[402289925,1768649465007,-500.0,0.00016986,3]
[402289926,1768649465017,-500.0,0.00016986,3]
[402289927,1768649465026,-1511.79,0.00016986,3]
[402289928,1768649465036,-500.0,0.00016986,3]
[402289929,1768649465046,-500.0,0.00016986,3]
[402289930,1768649465057,-500.0,0.00016986,3]
[402289931,1768649465067,-500.0,0.00016986,3]
[402289932,1768649465078,-500.0,0.00016986,3]
[402289933,1768649465089,-596.44715493,0.00016986,3]
[402289934,1768649465099,-500.0,0.00016986,3]
[402289935,1768649465109,-745.23,0.00016986,3]
[402289936,1768649465118,-500.0,0.00016986,3]
[402289937,1768649465127,-500.0,0.00016986,3]
[402289938,1768649465136,-1200.0,0.00016986,2]
[402289939,1768649465146,-500.0,0.00016986,3]
[402289940,1768649465155,-500.0,0.00016986,3]
[402289941,1768649465165,-500.0,0.00016986,3]
[402289942,1768649465175,-500.0,0.00016986,3]
[402289943,1768649465184,-500.0,0.00016986,3]
[402289944,1768649465194,-697.62,0.00016986,3]
[402289945,1768649465203,-500.0,0.00016986,3]
[402289946,1768649465213,-500.0,0.00016986,3]
[402289947,1768649465222,-618.2,0.00016986,3]
[402289948,1768649465232,-1774.68,0.00016986,3]
[402289949,1768649465242,-500.0,0.00016986,3]
[402289950,1768649465252,-942.63,0.00016986,3]
[402289951,1768649465263,-500.0,0.00016986,3]
[402289952,1768649465273,-500.0,0.00016986,3]
[402289953,1768649465282,-500.0,0.00016986,3]
[402289954,1768649465291,-500.0,0.00016986,3]
[402289955,1768649465301,-500.0,0.00016986,3]
[402289956,1768649465311,-1586.94,0.00016986,3]
[402289957,1768649465321,-500.0,0.00016986,3]
[402289958,1768649465331,-500.0,0.00016986,3]
[402289959,1768649465341,-500.0,0.00016986,3]
[402289960,1768649465351,-500.0,0.00016986,3]
[402289961,1768649465360,-540.84,0.00016986,3]
[402289962,1768649465370,-1084.84,0.00016986,3]
[402289963,1768649465379,-500.0,0.00016986,3]
[402289964,1768649465389,-500.0,0.00016986,3]
[402289965,1768649465398,-693.7,0.00016986,3]
[402289966,1768649465408,-1859.94,0.00016986,3]
[402289967,1768649465419,-500.0,0.00016986,3]
[402289968,1768649465430,-500.0,0.00016986,3]
[402289969,1768649465440,-500.0,0.00016986,3]
[402289970,1768649465450,-500.0,0.00016986,3]
[402289971,1768649465459,-500.0,0.00016986,3]
[402289972,1768649465469,-500.0,0.00016986,3]
[402289973,1768649465479,-500.0,0.00016986,3]
[402289974,1768649465488,-500.0,0.00016986,3]
[402289975,1768649465498,-500.0,0.00016986,3]
[402289976,1768649465508,-500.0,0.00016986,3]
[402289977,1768649465519,-782.75,0.00016986,3]
[402289978,1768649465530,-500.0,0.00016986,3]
[402289979,1768649465539,-752.05,0.00016986,3]
[402289980,1768649465548,-500.0,0.00016986,3]
[402289981,1768649465558,-500.0,0.00016986,3]
[402289982,1768649465567,-500.0,0.00016986,3]
[402289983,1768649465576,-775.14,0.00016986,3]
[402289984,1768649465586,-500.0,0.00016986,3]
[402289985,1768649465595,-2140.55,0.00016986,3]
[402289986,1768649465605,-500.0,0.00016986,3]
[402289987,1768649465614,-1600.91,0.00016986,3]
[402289988,1768649465625,-500.0,0.00016986,3]
[402289989,1768649465636,-500.0,0.00016986,3]
[402289990,1768649465647,-500.0,0.00016986,3]
[402289991,1768649465657,-500.0,0.00016986,3]
[402289992,1768649465667,-500.0,0.00016986,3]
[402289993,1768649465678,-500.0,0.00016986,3]
[402289994,1768649465688,-500.0,0.00016986,3]
[402289995,1768649465698,-500.0,0.00016986,3]
[402289996,1768649465708,-500.0,0.00016986,3]
[402289997,1768649465719,-540.2,0.00016986,3]
[402289998,1768649465730,-500.0,0.00016986,3]
[402289999,1768649465739,-500.0,0.00016986,3]
[402290000,1768649465749,-691.55,0.00016986,3]
[402290001,1768649465759,-500.0,0.00016986,3]
[402290002,1768649465770,-2007.96,0.00016986,3]
[402290003,1768649465780,-617.43587181,0.00016986,3]
[402290004,1768649465790,-835.27,0.00016986,3]
[402290005,1768649465802,-1472.9,0.00016986,3]
[402290006,1768649465813,-1210.81,0.00016986,3]
[402290007,1768649465822,-500.0,0.00016986,3]
[402290008,1768649465831,-604.57,0.00016986,3]
[402290009,1768649465842,-500.0,0.00016986,3]
[402290010,1768649465851,-500.0,0.00016986,3]
[402290011,1768649465861,-1776.82,0.00016986,3]
[402290012,1768649465871,-500.0,0.00016986,3]
[402290013,1768649465881,-500.0,0.00016986,3]
[402290014,1768649465892,-500.0,0.00016986,3]
[402290015,1768649465901,-582.22,0.00016986,3]
[402290016,1768649465912,-1240.14,0.00016986,3]
[402290017,1768649465922,-500.0,0.00016986,3]
[402290018,1768649465932,-158.66112729,0.00016986,3]
[402290019,1768649465941,-884.93,0.00016986,3]
[402290020,1768649465951,-500.0,0.00016986,3]
[402290021,1768649465960,-628.44,0.00016986,3]
[402290022,1768649465970,-500.0,0.00016986,3]
[402290023,1768649465982,-529.79,0.00016986,3]
[402290024,1768649465992,-500.0,0.00016986,3]
[402290025,1768649466002,-500.0,0.00016986,3]
[402290026,1768649466011,-500.0,0.00016986,3]
[402290027,1768649466020,-500.0,0.00016986,3]
[402290028,1768649466030,-500.0,0.00016986,3]
[402290029,1768649466040,-500.0,0.00016986,3]
[402290030,1768649466050,-500.0,0.00016986,2]
[402290031,1768649466059,-500.0,0.00016986,3]
[402290032,1768649466068,-500.0,0.00016986,3]
[402290033,1768649466078,-511.03,0.00016986,3]
[402290034,1768649466087,-1076.17,0.00016986,3]
[402290035,1768649466097,-500.0,0.00016986,3]
[402290036,1768649466106,-1251.31,0.00016986,3]
[402290037,1768649466116,-993.75,0.00016986,3]
[402290038,1768649466125,-538.55531083,0.00016986,3]
[402290039,1768649466135,-500.0,0.00016986,3]
[402290040,1768649466144,-592.17,0.00016986,3]
[402290041,1768649466153,-500.0,0.00016986,3]
[402290042,1768649466162,-1040.39,0.00016986,3]
[402290043,1768649466171,-1158.63,0.00016986,3]
[402290044,1768649466180,-500.0,0.00016986,3]
[402290045,1768649466189,-480.06845953,0.00016986,3]
[402290046,1768649466198,-1446.98,0.00016986,3]
[402290047,1768649466207,-500.0,0.00016986,3]
[402290048,1768649466217,-500.0,0.00016986,3]
[402290049,1768649466227,-500.0,0.00016986,3]
[402290050,1768649466236,-553.77,0.00016986,3]
[402290051,1768649466245,-1160.93,0.00016986,3]
[402290052,1768649466255,-789.43,0.00016986,3]
[402290053,1768649466264,-500.0,0.00016986,3]
[402290054,1768649466274,-781.61,0.00016986,3]
[402290055,1768649466285,-677.45,0.00016986,3]
[402290056,1768649466295,-1417.89,0.00016986,3]
[402290057,1768649466306,-529.66608909,0.00016986,3]
[402290058,1768649466317,-500.0,0.00016986,3]
[402290059,1768649466327,-1042.85,0.00016986,3]
[402290060,1768649466337,-500.0,0.00016986,3]
[402290061,1768649466347,-509.58,0.00016986,3]
[402290062,1768649466357,-882.89,0.00016986,3]
[402290063,1768649466369,-1329.23,0.00016986,3]
[402290064,1768649466379,-784.38,0.00016986,3]
[402290065,1768649466391,-529.21482368,0.00016986,3]
[402290066,1768649466401,-952.33,0.00016986,3]
[402290067,1768649466411,-500.0,0.00016986,3]
[402290068,1768649466420,-936.94,0.00016986,3]
[402290069,1768649466430,-500.0,0.00016986,3]
[402290070,1768649466439,-500.0,0.00016986,3]
[402290071,1768649466449,-1708.14,0.00016986,3]
[402290072,1768649466460,-390.63830152,0.00016986,3]
[402290073,1768649466470,-982.82,0.00016986,3]
[402290074,1768649466481,-500.0,0.00016986,3]
[402290075,1768649466491,-647.1,0.00016986,3]
[402290076,1768649466501,-593.22,0.00016986,3]
[402290077,1768649466587,-500.0,0.00016986,3]
[402290078,1768649466597,-550.51,0.00016986,3]
[402290079,1768649466607,-700.82,0.00016986,3]
[402290080,1768649466616,-500.0,0.00016986,3]
[402290081,1768649466625,-500.0,0.00016986,3]
[402290082,1768649466635,-500.0,0.00016986,3]
[402290083,1768649466645,-500.0,0.00016986,3]
[402290084,1768649466656,-500.0,0.00016986,3]
[402290085,1768649466666,-500.0,0.00016986,3]
[402290086,1768649466676,-500.0,0.00016986,3]
[402290087,1768649466686,-500.0,0.00016986,3]
[402290088,1768649466697,-500.0,0.00016986,3]
[402290089,1768649466707,-500.0,0.00016986,3]
[402290090,1768649466717,-500.0,0.00016986,3]
[402290091,1768649466727,-1436.34,0.00016986,3]
[402290092,1768649466737,-500.0,0.00016986,3]
[402290093,1768649466746,-500.0,0.00016986,3]
[402290094,1768649466755,-500.0,0.00016986,3]
[402290095,1768649466765,-588.13,0.00016986,3]
[402290096,1768649466778,-1686.51,0.00016986,3]
[402290097,1768649466787,-500.0,0.00016986,3]
[402290098,1768649466797,-500.0,0.00016986,3]
[402290099,1768649466808,-1458.01,0.00016986,3]
[402290100,1768649466819,-500.0,0.00016986,3]
[402290101,1768649466830,-500.0,0.00016986,3]
[402290102,1768649466841,-1003.45,0.00016986,3]
[402290103,1768649466852,-500.0,0.00016986,3]
[402290104,1768649466861,-2354.26,0.00016986,3]
[402290105,1768649466871,-500.0,0.00016986,3]
[402290106,1768649466880,-500.0,0.00016986,3]
[402290107,1768649466889,-1932.31,0.00016986,3]
[402290108,1768649466898,-1910.88,0.00016986,3]
[402290109,1768649466907,-904.86,0.00016986,3]
[402290110,1768649466916,-500.0,0.00016986,3]
[402290111,1768649466925,-500.0,0.00016986,3]
[402290112,1768649466935,-742.45,0.00016986,3]
[402290113,1768649466944,-1293.83,0.00016986,3]
[402290114,1768649466953,-500.0,0.00016986,3]
[402290115,1768649466963,-501.96,0.00016986,3]
[402290116,1768649466972,-500.0,0.00016986,3]
[402290117,1768649466981,-1515.25,0.00016986,3]
[402290118,1768649466990,-500.0,0.00016986,3]
[402290119,1768649467000,-500.0,0.00016986,3]
[402290120,1768649467009,-500.0,0.00016986,3]
[402290121,1768649467018,-367.06559996,0.00016986,3]
[402290122,1768649467027,-500.0,0.00016986,3]
[402290123,1768649467036,-771.05,0.00016986,3]
[402290124,1768649467046,-765.96,0.00016986,3]
[402290125,1768649467055,-500.0,0.00016986,3]
[402290126,1768649467064,-500.0,0.00016986,3]
[402290127,1768649467073,-1376.88,0.00016986,3]
[402290128,1768649467082,-500.0,0.00016986,3]
[402290129,1768649467092,-500.0,0.00016986,3]
[402290130,1768649467101,-500.0,0.00016986,3]
[402290131,1768649467111,-523.35,0.00016986,3]
[402290132,1768649467120,-500.0,0.00016986,3]
[402290133,1768649467129,-500.0,0.00016986,3]
[402290134,1768649467139,-1132.82,0.00016986,3]
[402290135,1768649467148,-500.0,0.00016986,3]
[402290136,1768649467158,-1546.28,0.00016986,3]
[402290137,1768649467168,-1000.0,0.00016986,2]